[Event "ESP-ch U2000 2024"]
[Site "Albacete"]
[Date "2024.08.29"]
[Round "5.2"]
[White "Tarraga Navarro, Pablo"]
[Black "Marin Lopez, Juan Jose"]
[Result "1-0"]
[ECO "A02"]
[WhiteElo "1968"]
[BlackElo "1895"]
[Annotator "RC"]
[PlyCount "121"]
[EventDate "2024.08.27"]
[EventType "swiss"]
[EventCountry "ESP"]
[SourceTitle "playchess.com"]
[Source "ChessBase"]
[SourceQuality "1"]
[TimeControl "5400+30"]

1. f4 {[%emt 0:00:10]} Nh6 {[%emt 0:00:24]} 2. e4 {[%emt 0:00:12]} d5 {[%emt 0:01:12]} 3. exd5 {[%emt 0:02:02]} Qxd5 {[%emt 0:01:20]} 4. Nc3 {[%emt 0:01:25]} Qd6 {[%emt 0:01:31]} 5. d4 {[%emt 0:03:19]} Bg4 {[%emt 0:01:15]} 6. Be2 {[%emt 0:03:25]} Bxe2 {[%emt 0:02:58]} 7. Qxe2 {[%emt 0:00:21]} Nc6 {[%emt 0:02:39]} 8. Nb5 {[%emt 0:10:04]} Qd7 {[%emt 0:07:07]} 9. c3 {[%emt 0:00:51]} O-O-O {[%emt 0:05:36]} 10. Nf3 {[%emt 0:00:29]} e6 11. b3 {[%emt 0:07:48]} Kb8 {[%emt 0:04:09]} 12. Bb2 {[%emt 0:00:33]} Nf5 {[%emt 0:04:28]} 13. O-O-O {[%emt 0:01:13]} h6 {[%emt 0:06:00]} 14. Kb1 {[%emt 0:01:38]} Be7 {[%emt 0:03:28]} 15. g4 {[%emt 0:15:54]} Nd6 {[%emt 0:05:21]} 16. Nxd6 {[%emt 0:00:07]} Bxd6 {[%emt 0:04:00]} 17. Qe3 {[%emt 0:00:19]} Ne7 {[%emt 0:02:43]} 18. c4 {[%emt 0:00:33]} Ng6 {[%emt 0:02:54]} 19. Ne5 {[%emt 0:00:10]} Bxe5 {[%emt 0:02:00]} 20. fxe5 {[%emt 0:06:45]} h5 {[%emt 0:05:43]} 21. h3 {[%emt 0:00:54]} hxg4 {[%emt 0:01:13]} 22. hxg4 {[%emt 0:00:05]} Rxh1 {[%emt 0:02:06]} 23. Rxh1 {[%emt 0:00:39]} Rh8 {[%emt 0:00:51]} 24. Rxh8+ {[%emt 0:00:15]} Nxh8 {[%emt 0:00:02]} 25. Qh3 {[%emt 0:00:15]} Qe8 26. Qh7 {[%emt 0:00:15]} Qf8 {[%emt 0:08:05]} 27. Ba3 {[%emt 0:00:45]} Qe8 {[%emt 0:00:01]} 28. Qxg7 {[%emt 0:00:41]} Ng6 {[%emt 0:00:04]} 29. Qf6 {[%emt 0:01:36]} b6 {[%emt 0:01:20]} 30. Bb2 {[%emt 0:00:39]} Kc8 {[%emt 0:03:45]} 31. Qf3 {[%emt 0:00:58]} Kb8 {[%emt 0:00:04]} 32. Qf6 {[%emt 0:01:04]} Kc8 {[%emt 0:00:24]} 33. a3 {[%emt 0:00:07]} a6 {[%emt 0:03:53]} 34. d5 {[%emt 0:03:23]} Kd7 {[%emt 0:04:04]} 35. Qf3 {[%emt 0:02:35]} Qe7 {[%emt 0:00:54]} 36. Qe4 {[%emt 0:02:22]} Qc5 {[%emt 0:02:33]} 37. dxe6+ {[%emt 0:15:08]} Kxe6 {[%emt 0:00:14]} 38. Qf5+ {[%emt 0:00:04]} Ke7 {[%emt 0:01:43]} 39. Qf6+ {[%emt 0:00:13]} Ke8 {[%emt 0:01:59]} 40. e6 {[%emt 0:00:07]} Qe7 {[%emt 0:01:22]} 41. exf7+ {[%emt 0:00:09]} Qxf7 {[%emt 0:00:21]} 42. Qc6+ {[%emt 0:00:06]} Kd8 {[%emt 0:03:05]} 43. Qa8+ {[%emt 0:00:12]} Kd7 {[%emt 0:01:42]} 44. Qxa6 {[%emt 0:00:12]} Qf1+ {[%emt 0:00:55]} 45. Ka2 {[%emt 0:00:09]} Qd3 {[%emt 0:02:29]} 46. Qb5+ {[%emt 0:00:13]} Kd8 {[%emt 0:01:31]} 47. Qg5+ {[%emt 0:01:37]} Ke8 {[%emt 0:00:38]} 48. Qf5 {[%emt 0:01:24]} Qxf5 {[%emt 0:02:57]} 49. gxf5 {[%emt 0:00:04]} Ne7 {[%emt 0:00:41]} 50. f6 {[%emt 0:02:13]} Nc6 {[%emt 0:01:04]} 51. b4 {[%emt 0:00:17]} Nd8 {[%emt 0:00:23]} 52. Kb3 {[%emt 0:01:52]} Kd7 {[%emt 0:00:19]} 53. Bd4 {[%emt 0:00:36]} Ne6 {[%emt 0:00:39]} 54. Be5 {[%emt 0:01:49]} c6 {[%emt 0:00:44]} 55. Ka4 {[%emt 0:01:41]} Nd8 {[%emt 0:00:19]} 56. Bd4 {[%emt 0:01:22]} Kc7 {[%emt 0:00:15]} 57. Kb3 {[%emt 0:00:08]} Nf7 {[%emt 0:00:28]} 58. a4 {[%emt 0:00:07]} Kb7 {[%emt 0:00:48]} 59. Kc3 {[%emt 0:00:25]} Nd6 {[%emt 0:00:36]} 60. Kd3 {[%emt 0:00:42]} Kc7 {[%emt 0:00:28]} 61. Be5 {[%emt 0:00:29]} 1-0

[Event "ESP-ch U2000 2024"]
[Site "Albacete"]
[Date "2024.08.29"]
[Round "5.3"]
[White "Reig Albero, Ferran"]
[Black "Hurtado Oldridge, Felipe"]
[Result "1/2-1/2"]
[ECO "E21"]
[WhiteElo "1969"]
[BlackElo "1873"]
[Annotator "NA RC"]
[PlyCount "61"]
[EventDate "2024.08.27"]
[EventType "swiss"]
[EventCountry "ESP"]
[SourceTitle "playchess.com"]
[Source "ChessBase"]
[SourceQuality "1"]
[TimeControl "5400+30"]

1. d4 Nf6 {[%emt 0:03:33]} 2. c4 {[%emt 0:00:57]} e6 {[%emt 0:01:20]} 3. Nc3 {[%emt 0:00:36]} Bb4 {[%emt 0:00:10]} 4. Nf3 {[%emt 0:00:40]} b6 {[%emt 0:01:11]} 5. Bg5 {[%emt 0:01:47]} h6 {[%emt 0:00:39]} 6. Bh4 {[%emt 0:00:49]} g5 {[%emt 0:00:15]} 7. Bg3 {[%emt 0:00:33]} Ne4 {[%emt 0:05:51]} 8. Qc2 {[%emt 0:00:22]} Bb7 {[%emt 0:00:26]} 9. e3 {[%emt 0:00:55]} Bxc3+ {[%emt 0:04:14]} 10. bxc3 {[%emt 0:00:16]} d6 {[%emt 0:02:33]} 11. Bd3 {[%emt 0:03:07]} Nxg3 {[%emt 0:01:52]} 12. fxg3 {[%emt 0:06:21]} Nd7 {[%emt 0:02:29]} 13. O-O {[%emt 0:03:23]} Qe7 {[%emt 0:02:53]} 14. e4 {[%emt 0:10:17]} e5 {[%emt 0:00:57]} 15. Rf2 {[%emt 0:02:13]} O-O-O {[%emt 0:03:31]} 16. Nd2 {[%emt 0:04:13]} Rdg8 {[%emt 0:06:35]} 17. Nf1 {[%emt 0:00:47]} Kb8 {[%emt 0:06:55]} 18. Ne3 {[%emt 0:00:44]} Bc8 {[%emt 0:07:20]} 19. a4 {[%emt 0:01:07]} exd4 {[%emt 0:01:38]} 20. Nd5 {[%emt 0:02:58]} Qe5 {[%emt 0:01:29]} 21. Rxf7 {[%emt 0:04:39]} dxc3 {[%emt 0:00:46]} 22. a5 {[%emt 0:04:47]} Qd4+ {[%emt 0:04:38]} 23. Kh1 {[%emt 0:01:28]} Rg7 {[%emt 0:03:38]} 24. Rxg7 {[%emt 0:15:02]} Qxg7 25. axb6 {[%emt 0:00:19]} cxb6 {[%emt 0:23:21]} 26. Nxc3 {[%emt 0:02:43]} Nc5 {[%emt 0:04:13]} 27. Rd1 {[%emt 0:00:20]} Bb7 {[%emt 0:00:15]} 28. Be2 {[%emt 0:04:15]} Qe5 {[%emt 0:01:18]} 29. Bf3 {[%emt 0:00:28]} g4 {[%emt 0:03:41]} 30. Bxg4 {[%emt 0:00:15]} Nxe4 31. Nxe4 1/2-1/2

[Event "ESP-ch U2000 2024"]
[Site "Albacete"]
[Date "2024.08.29"]
[Round "5.4"]
[White "Sierra Pena, Mario"]
[Black "Santos Dominguez, Iker"]
[Result "1-0"]
[ECO "A04"]
[WhiteElo "1971"]
[BlackElo "1900"]
[Annotator "NA RC"]
[PlyCount "89"]
[EventDate "2024.08.27"]
[EventType "swiss"]
[EventCountry "ESP"]
[SourceTitle "playchess.com"]
[Source "ChessBase"]
[SourceQuality "1"]
[TimeControl "5400+30"]

1. Nf3 {[%emt 0:00:06]} c5 {[%emt 0:01:40]} 2. c4 {[%emt 0:00:16]} Nc6 {[%emt 0:00:33]} 3. g3 {[%emt 0:00:10]} g6 {[%emt 0:00:54]} 4. Bg2 {[%emt 0:00:10]} Bg7 {[%emt 0:01:09]} 5. O-O {[%emt 0:00:05]} d6 {[%emt 0:00:17]} 6. d3 {[%emt 0:01:20]} e5 {[%emt 0:00:44]} 7. Nc3 {[%emt 0:00:34]} Nge7 {[%emt 0:00:15]} 8. a3 {[%emt 0:01:11]} O-O {[%emt 0:00:45]} 9. Rb1 {[%emt 0:00:07]} h6 {[%emt 0:01:45]} 10. b4 {[%emt 0:01:38]} f5 {[%emt 0:03:00]} 11. b5 {[%emt 0:12:02]} Nd4 {[%emt 0:01:49]} 12. Nxd4 {[%emt 0:00:53]} exd4 {[%emt 0:01:00]} 13. Nd5 {[%emt 0:00:54]} Nxd5 {[%emt 0:02:56]} 14. Bxd5+ {[%emt 0:01:26]} Kh7 {[%emt 0:00:21]} 15. a4 {[%emt 0:02:44]} g5 {[%emt 0:09:09]} 16. f4 {[%emt 0:00:02]} g4 {[%emt 0:01:18]} 17. Rf2 {[%emt 0:04:21]} Qe7 {[%emt 0:04:11]} 18. h3 {[%emt 0:07:44]} h5 {[%emt 0:02:59]} 19. hxg4 {[%emt 0:00:34]} hxg4 {[%emt 0:00:02]} 20. Rh2+ {[%emt 0:02:02]} Kg6 {[%emt 0:00:20]} 21. Bd2 {[%emt 0:03:20]} Be6 {[%emt 0:00:55]} 22. Bg2 {[%emt 0:07:18]} Rh8 {[%emt 0:02:39]} 23. Rxh8 {[%emt 0:01:02]} Rxh8 {[%emt 0:00:02]} 24. Qc2 {[%emt 0:03:34]} Bc8 {[%emt 0:10:07]} 25. Re1 {[%emt 0:01:00]} b6 {[%emt 0:04:54]} 26. Rf1 {[%emt 0:07:37]} Bb7 {[%emt 0:01:11]} 27. Rf2 {[%emt 0:00:12]} Bf6 {[%emt 0:00:55]} 28. Qb1 {[%emt 0:06:04]} Qh7 {[%emt 0:07:14]} 29. Bxb7 {[%emt 0:00:19]} Qxb7 {[%emt 0:00:01]} 30. Rg2 {[%emt 0:00:24]} Rh3 {[%emt 0:01:51]} 31. Kf2 {[%emt 0:03:32]} Qh7 {[%emt 0:00:48]} 32. Qf1 {[%emt 0:02:12]} Bh4 {[%emt 0:06:22]} 33. e4 {[%emt 0:06:44]} dxe3+ {[%emt 0:01:50]} 34. Bxe3 {[%emt 0:00:39]} Bxg3+ {[%emt 0:00:15]} 35. Rxg3 {[%emt 0:00:34]} Qh4 {[%emt 0:00:06]} 36. Qxh3 {[%emt 0:01:24]} Qf6 {[%emt 0:02:15]} 37. Qf1 {[%emt 0:04:26]} Qb2+ {[%emt 0:00:29]} 38. Qe2 {[%emt 0:00:13]} Qb3 {[%emt 0:01:00]} 39. Bd2 {[%emt 0:00:34]} Qb2 {[%emt 0:00:40]} 40. Re3 {[%emt 0:00:12]} Qd4 {[%emt 0:01:28]} 41. Kg3 {[%emt 0:00:13]} Kh5 {[%emt 0:00:37]} 42. Qh2+ {[%emt 0:00:32]} Kg6 {[%emt 0:00:12]} 43. Qh4 {[%emt 0:00:19]} Qa1 {[%emt 0:01:07]} 44. Re6+ {[%emt 0:00:16]} Kf7 {[%emt 0:00:18]} 45. Qe7+ {[%emt 0:00:12]} 1-0

[Event "ESP-ch U2000 2024"]
[Site "Albacete"]
[Date "2024.08.29"]
[Round "5.5"]
[White "Burriel Ureta, Raul"]
[Black "Lopez Ruiz, Jarein"]
[Result "1/2-1/2"]
[ECO "C77"]
[WhiteElo "1868"]
[BlackElo "1970"]
[Annotator "NA RC"]
[PlyCount "84"]
[EventDate "2024.08.27"]
[EventType "swiss"]
[EventCountry "ESP"]
[SourceTitle "playchess.com"]
[Source "ChessBase"]
[SourceQuality "1"]
[TimeControl "5400+30"]

1. e4 e5 {[%emt 0:00:57]} 2. Nf3 {[%emt 0:00:02]} Nc6 {[%emt 0:00:04]} 3. Bb5 {[%emt 0:00:02]} a6 {[%emt 0:00:04]} 4. Ba4 {[%emt 0:00:05]} Nf6 {[%emt 0:00:06]} 5. d3 {[%emt 0:00:01]} Bc5 {[%emt 0:00:57]} 6. c3 {[%emt 0:00:03]} b5 {[%emt 0:00:06]} 7. Bc2 {[%emt 0:00:02]} d6 {[%emt 0:00:07]} 8. h3 {[%emt 0:00:09]} h6 {[%emt 0:01:17]} 9. O-O {[%emt 0:00:04]} O-O {[%emt 0:00:16]} 10. Re1 {[%emt 0:00:47]} Bb7 {[%emt 0:01:02]} 11. Nbd2 {[%emt 0:01:13]} Ba7 {[%emt 0:01:00]} 12. Nf1 {[%emt 0:01:49]} Ne7 {[%emt 0:09:23]} 13. d4 {[%emt 0:03:07]} Ng6 14. b4 {[%emt 0:08:28]} Re8 {[%emt 0:04:46]} 15. Ng3 {[%emt 0:00:08]} d5 {[%emt 0:13:53]} 16. Nxe5 {[%emt 0:08:33]} Nxe5 {[%emt 0:02:26]} 17. dxe5 {[%emt 0:00:03]} Nxe4 {[%emt 0:01:51]} 18. Nxe4 {[%emt 0:00:37]} dxe4 19. Bf4 Qh4 {[%emt 0:04:47]} 20. Be3 {[%emt 0:08:05]} Rad8 {[%emt 0:16:11]} 21. Qe2 {[%emt 0:01:49]} Bxe3 {[%emt 0:00:24]} 22. Qxe3 {[%emt 0:00:01]} Rxe5 {[%emt 0:00:18]} 23. Rad1 {[%emt 0:03:18]} Rd6 {[%emt 0:15:38]} 24. Rxd6 {[%emt 0:04:22]} cxd6 {[%emt 0:00:02]} 25. Qd4 {[%emt 0:04:29]} Qe7 {[%emt 0:03:26]} 26. Re3 {[%emt 0:00:55]} Bd5 {[%emt 0:07:23]} 27. Qb6 {[%emt 0:02:10]} Bxa2 {[%emt 0:01:31]} 28. Qxa6 {[%emt 0:00:58]} Bc4 {[%emt 0:05:21]} 29. Rxe4 {[%emt 0:03:15]} Rxe4 {[%emt 0:02:23]} 30. Qa8+ {[%emt 0:00:01]} Qe8 {[%emt 0:00:23]} 31. Bxe4 {[%emt 0:01:08]} Qxa8 {[%emt 0:00:40]} 32. Bxa8 {[%emt 0:00:01]} g5 {[%emt 0:01:05]} 33. g3 {[%emt 0:00:21]} Kg7 {[%emt 0:00:38]} 34. f4 {[%emt 0:00:54]} gxf4 {[%emt 0:04:38]} 35. gxf4 {[%emt 0:00:01]} Kf6 {[%emt 0:00:10]} 36. Be4 {[%emt 0:01:44]} Ke6 {[%emt 0:02:05]} 37. Kf2 {[%emt 0:00:49]} Bd5 {[%emt 0:01:37]} 38. Bd3 Bc6 39. c4 bxc4 40. Bxc4+ d5 41. Bd3 d4 42. b5 Bb7 1/2-1/2

[Event "ESP-ch U2000 2024"]
[Site "Albacete"]
[Date "2024.08.29"]
[Round "5.6"]
[White "Martin Cantizano, David"]
[Black "Sanjuan Garcia, Miguel"]
[Result "0-1"]
[ECO "B56"]
[WhiteElo "1864"]
[BlackElo "1963"]
[Annotator "NA RC"]
[PlyCount "64"]
[EventDate "2024.08.27"]
[EventType "swiss"]
[EventCountry "ESP"]
[SourceTitle "playchess.com"]
[Source "ChessBase"]
[SourceQuality "1"]
[TimeControl "5400+30"]

1. e4 {[%emt 0:00:04]} c5 {[%emt 0:00:01]} 2. Nf3 {[%emt 0:00:10]} d6 {[%emt 0:00:10]} 3. d4 {[%emt 0:00:09]} cxd4 {[%emt 0:00:02]} 4. Nxd4 {[%emt 0:00:07]} Nf6 {[%emt 0:00:05]} 5. Nc3 {[%emt 0:00:07]} e5 {[%emt 0:00:05]} 6. Ndb5 {[%emt 0:00:23]} a6 {[%emt 0:00:59]} 7. Na3 {[%emt 0:00:06]} b5 {[%emt 0:03:19]} 8. Naxb5 {[%emt 0:10:54]} axb5 {[%emt 0:00:23]} 9. Bxb5+ {[%emt 0:00:08]} Bd7 {[%emt 0:01:11]} 10. Bxd7+ {[%emt 0:01:26]} Nbxd7 {[%emt 0:03:21]} 11. a4 {[%emt 0:08:03]} Nc5 {[%emt 0:10:43]} 12. Qf3 {[%emt 0:19:37]} Qb8 {[%emt 0:03:05]} 13. O-O {[%emt 0:00:31]} Be7 {[%emt 0:00:31]} 14. b3 {[%emt 0:04:18]} O-O {[%emt 0:00:35]} 15. Bg5 {[%emt 0:00:59]} Ne6 {[%emt 0:03:36]} 16. Bxf6 {[%emt 0:00:12]} Bxf6 {[%emt 0:00:02]} 17. Nd5 {[%emt 0:01:43]} Bg5 {[%emt 0:00:39]} 18. b4 {[%emt 0:04:36]} Nf4 {[%emt 0:02:03]} 19. c3 {[%emt 0:06:31]} Nxd5 {[%emt 0:02:33]} 20. exd5 {[%emt 0:00:05]} f5 {[%emt 0:02:17]} 21. Qe2 {[%emt 0:01:11]} e4 {[%emt 0:01:15]} 22. Rfb1 {[%emt 0:00:39]} Bf6 {[%emt 0:01:41]} 23. Ra3 {[%emt 0:00:07]} Qe8 {[%emt 0:01:41]} 24. a5 {[%emt 0:00:42]} f4 {[%emt 0:00:22]} 25. b5 {[%emt 0:02:05]} f3 {[%emt 0:00:40]} 26. gxf3 {[%emt 0:00:33]} Qg6+ {[%emt 0:00:18]} 27. Kh1 {[%emt 0:00:13]} exf3 {[%emt 0:00:02]} 28. Qf1 {[%emt 0:00:09]} Be5 {[%emt 0:04:46]} 29. Rb4 {[%emt 0:05:18]} Qh6 {[%emt 0:06:40]} 30. Qg1 {[%emt 0:05:54]} Bxh2 {[%emt 0:04:16]} 31. Qxh2 {[%emt 0:00:13]} Qc1+ {[%emt 0:00:01]} 32. Qg1 {[%emt 0:00:11]} Qxa3 {[%emt 0:00:08]} 0-1

[Event "ESP-ch U2000 2024"]
[Site "Albacete"]
[Date "2024.08.29"]
[Round "5.7"]
[White "Garcia-Ballesteros Banos, Juan A"]
[Black "Perez Hernandez, Juan S."]
[Result "1-0"]
[ECO "B01"]
[WhiteElo "1857"]
[BlackElo "1955"]
[Annotator "RC"]
[PlyCount "105"]
[EventDate "2024.08.27"]
[EventType "swiss"]
[EventCountry "ESP"]
[SourceTitle "playchess.com"]
[Source "ChessBase"]
[SourceQuality "1"]
[TimeControl "5400+30"]

1. e4 {[%emt 0:00:03]} d5 {[%emt 0:00:29]} 2. exd5 {[%emt 0:00:13]} Qxd5 {[%emt 0:00:35]} 3. Nc3 {[%emt 0:00:06]} Qa5 {[%emt 0:00:25]} 4. d4 {[%emt 0:00:09]} c6 {[%emt 0:00:52]} 5. Bd2 {[%emt 0:00:39]} Nf6 {[%emt 0:01:21]} 6. Nf3 {[%emt 0:00:40]} Bf5 {[%emt 0:01:00]} 7. Bc4 {[%emt 0:00:59]} Nbd7 {[%emt 0:01:37]} 8. Nd5 {[%emt 0:08:57]} Qd8 {[%emt 0:02:31]} 9. Nxf6+ {[%emt 0:01:13]} exf6 {[%emt 0:03:17]} 10. O-O {[%emt 0:03:07]} Be7 {[%emt 0:01:16]} 11. Re1 {[%emt 0:01:16]} a5 {[%emt 0:07:35]} 12. Nh4 {[%emt 0:08:48]} Bg6 {[%emt 0:04:09]} 13. Nxg6 {[%emt 0:07:46]} hxg6 {[%emt 0:00:36]} 14. c3 {[%emt 0:00:36]} Nb6 {[%emt 0:02:29]} 15. Bb3 {[%emt 0:05:03]} Qc7 {[%emt 0:05:23]} 16. h3 {[%emt 0:00:50]} Kf8 {[%emt 0:02:30]} 17. a4 {[%emt 0:01:23]} g5 {[%emt 0:04:02]} 18. Qf3 {[%emt 0:04:32]} Bd6 {[%emt 0:01:39]} 19. Re4 {[%emt 0:04:55]} Qd7 {[%emt 0:02:50]} 20. Rg4 {[%emt 0:19:28]} Nd5 {[%emt 0:06:22]} 21. Re1 {[%emt 0:03:30]} Bf4 {[%emt 0:01:10]} 22. Bxf4 {[%emt 0:06:28]} Nxf4 {[%emt 0:01:52]} 23. Rg3 {[%emt 0:01:18]} g6 {[%emt 0:04:03]} 24. Qe4 {[%emt 0:02:18]} Rh4 {[%emt 0:05:04]} 25. Qc2 {[%emt 0:04:19]} Nd5 {[%emt 0:05:47]} 26. Bxd5 {[%emt 0:02:08]} Qxd5 {[%emt 0:01:23]} 27. Rg4 {[%emt 0:00:04]} Rxg4 {[%emt 0:02:34]} 28. hxg4 {[%emt 0:00:02]} Kg7 {[%emt 0:00:36]} 29. Re7 {[%emt 0:02:51]} Rh8 {[%emt 0:06:50]} 30. Rxb7 {[%emt 0:00:56]} Qe6 {[%emt 0:00:42]} 31. Qd1 {[%emt 0:01:37]} c5 {[%emt 0:05:25]} 32. dxc5 {[%emt 0:01:34]} Qe5 {[%emt 0:00:07]} 33. Rd7 {[%emt 0:02:47]} Qh2+ {[%emt 0:01:44]} 34. Kf1 {[%emt 0:00:01]} Qh1+ {[%emt 0:01:23]} 35. Ke2 {[%emt 0:00:10]} Qxg2 {[%emt 0:00:49]} 36. Qd5 {[%emt 0:02:10]} Re8+ {[%emt 0:01:27]} 37. Kd3 {[%emt 0:01:12]} Qf1+ {[%emt 0:03:30]} 38. Kc2 {[%emt 0:00:01]} Qxf2+ {[%emt 0:01:44]} 39. Kb1 {[%emt 0:00:01]} Rf8 {[%emt 0:00:32]} 40. c6 {[%emt 0:00:38]} Qg1+ {[%emt 0:00:30]} 41. Ka2 {[%emt 0:00:10]} Qxg4 {[%emt 0:00:15]} 42. c4 {[%emt 0:01:42]} Qf5 {[%emt 0:01:12]} 43. c7 {[%emt 0:00:58]} Qxd5 {[%emt 0:02:56]} 44. cxd5 {[%emt 0:00:02]} g4 {[%emt 0:00:49]} 45. Re7 {[%emt 0:03:55]} g3 {[%emt 0:00:22]} 46. Re1 {[%emt 0:00:15]} f5 {[%emt 0:00:35]} 47. d6 {[%emt 0:00:09]} f4 {[%emt 0:00:37]} 48. d7 {[%emt 0:00:07]} f3 {[%emt 0:00:24]} 49. d8=Q {[%emt 0:00:57]} f2 {[%emt 0:00:29]} 50. Qxf8+ {[%emt 0:00:39]} Kxf8 {[%emt 0:00:08]} 51. c8=Q+ {[%emt 0:00:07]} Kg7 {[%emt 0:00:18]} 52. Qc3+ {[%emt 0:00:33]} Kf8 {[%emt 0:00:05]} 53. Qh8# 1-0

[Event "ESP-ch U2000 2024"]
[Site "Albacete"]
[Date "2024.08.29"]
[Round "5.8"]
[White "Salazar Romero, Abel"]
[Black "Penarrubia Blasco, Jose Alfredo"]
[Result "1-0"]
[ECO "E01"]
[WhiteElo "1937"]
[BlackElo "1891"]
[Annotator "NA RC"]
[PlyCount "91"]
[EventDate "2024.08.27"]
[EventType "swiss"]
[EventCountry "ESP"]
[SourceTitle "playchess.com"]
[Source "ChessBase"]
[SourceQuality "1"]
[TimeControl "5400+30"]

1. d4 {[%emt 0:00:04]} Nf6 {[%emt 0:03:36]} 2. c4 {[%emt 0:00:05]} e6 {[%emt 0:00:10]} 3. g3 {[%emt 0:00:05]} d5 {[%emt 0:00:45]} 4. Bg2 {[%emt 0:00:06]} c6 {[%emt 0:01:58]} 5. Nf3 {[%emt 0:00:27]} Nbd7 {[%emt 0:01:12]} 6. b3 {[%emt 0:02:19]} Bd6 {[%emt 0:03:56]} 7. Bb2 {[%emt 0:01:36]} O-O {[%emt 0:00:23]} 8. O-O {[%emt 0:00:12]} Re8 {[%emt 0:01:54]} 9. Nc3 {[%emt 0:06:17]} b6 {[%emt 0:03:28]} 10. Nd2 {[%emt 0:03:05]} Bb7 {[%emt 0:04:24]} 11. e4 {[%emt 0:03:02]} dxe4 {[%emt 0:01:45]} 12. Ndxe4 {[%emt 0:00:44]} Nxe4 {[%emt 0:01:13]} 13. Nxe4 {[%emt 0:00:09]} Nf6 {[%emt 0:00:28]} 14. Nxd6 {[%emt 0:01:53]} Qxd6 {[%emt 0:00:09]} 15. Qf3 {[%emt 0:08:41]} Rad8 {[%emt 0:10:06]} 16. Rfd1 {[%emt 0:01:02]} h6 {[%emt 0:08:33]} 17. Rac1 {[%emt 0:10:45]} Rd7 {[%emt 0:03:43]} 18. Bh3 {[%emt 0:03:58]} Nh7 {[%emt 0:04:05]} 19. Qc3 {[%emt 0:01:48]} Ng5 {[%emt 0:04:39]} 20. Bg2 {[%emt 0:00:13]} f6 {[%emt 0:01:12]} 21. h4 {[%emt 0:05:09]} Nf7 {[%emt 0:00:32]} 22. b4 {[%emt 0:00:29]} Red8 {[%emt 0:02:00]} 23. Bh3 {[%emt 0:13:21]} Re7 {[%emt 0:06:33]} 24. c5 {[%emt 0:04:37]} Qc7 {[%emt 0:05:22]} 25. Qb3 {[%emt 0:00:36]} Rde8 {[%emt 0:02:13]} 26. a4 {[%emt 0:00:19]} Kf8 {[%emt 0:01:21]} 27. b5 {[%emt 0:01:03]} cxb5 {[%emt 0:00:29]} 28. axb5 {[%emt 0:00:17]} Bd5 {[%emt 0:00:46]} 29. Qa3 {[%emt 0:02:13]} bxc5 {[%emt 0:03:06]} 30. dxc5 {[%emt 0:00:06]} Ne5 {[%emt 0:00:33]} 31. Bxe5 {[%emt 0:00:13]} Qxe5 {[%emt 0:00:23]} 32. Bg2 {[%emt 0:03:28]} Bxg2 {[%emt 0:03:51]} 33. Kxg2 {[%emt 0:00:05]} Kf7 {[%emt 0:00:12]} 34. Qf3 {[%emt 0:09:07]} Rb8 {[%emt 0:01:25]} 35. Qc6 {[%emt 0:07:19]} Qc7 {[%emt 0:00:12]} 36. Qa6 {[%emt 0:00:26]} g5 {[%emt 0:06:21]} 37. h5 {[%emt 0:00:13]} f5 {[%emt 0:02:04]} 38. Rd6 {[%emt 0:00:24]} g4 {[%emt 0:02:22]} 39. Qa4 {[%emt 0:01:35]} Qb7+ {[%emt 0:02:41]} 40. c6 {[%emt 0:00:12]} Qc7 {[%emt 0:01:23]} 41. Rcd1 {[%emt 0:00:15]} Qb6 {[%emt 0:02:30]} 42. Qf4 {[%emt 0:04:51]} Kg7 {[%emt 0:05:01]} 43. Qe5+ {[%emt 0:00:08]} Kf7 {[%emt 0:00:03]} 44. Rxe6 {[%emt 0:00:39]} Rxe6 {[%emt 0:02:01]} 45. Rd7+ {[%emt 0:00:05]} Re7 46. Rd6 1-0

[Event "ESP-ch U2000 2024"]
[Site "Albacete"]
[Date "2024.08.29"]
[Round "5.9"]
[White "Machin Arbelo, Pedro Alexis"]
[Black "Arnedo Vigueras, Miguel"]
[Result "1-0"]
[ECO "D00"]
[WhiteElo "1916"]
[BlackElo "1850"]
[Annotator "NA RC"]
[PlyCount "55"]
[EventDate "2024.08.27"]
[EventType "swiss"]
[EventCountry "ESP"]
[SourceTitle "playchess.com"]
[Source "ChessBase"]
[SourceQuality "1"]
[TimeControl "5400+30"]

1. d4 d5 2. Bf4 e6 3. Nf3 Nf6 4. e3 Bd6 5. Ne5 O-O 6. Nd2 c5 7. c3 Qc7 8. Bd3 Nc6 9. Ndf3 h6 10. g4 Nd7 11. g5 h5 12. g6 Ndxe5 13. Nxe5 Bxe5 14. Qxh5 fxg6 15. Bxg6 Rd8 16. dxe5 Ne7 17. Bg5 Nxg6 18. Bxd8 Qxd8 19. Qxg6 Bd7 20. Rg1 Qe7 21. O-O-O Rf8 22. Rd2 b5 23. Qg5 Qf7 24. f4 Be8 25. Rdg2 g6 26. Qh6 Qg7 27. Rxg6 Bxg6 28. Rxg6 1-0